[Event "Red Bull Chess Masters 2018"]
[Site "Istanbul"]
[Date "2018.10.20"]
[Round "1.2"]
[White "Celikel, Fatih"]
[Black "Eren, Cuneyt"]
[Result "1-0"]
[ECO "D02"]
[WhiteElo "1856"]
[BlackElo "2084"]
[Annotator "NA RC"]
[PlyCount "65"]
[EventDate "2018.10.19"]
[EventType "team-tourn"]
[EventCountry "TUR"]
[SourceTitle "playchess.com"]
[Source "ChessBase"]
[SourceQuality "1"]
[TimeControl "600+5"]

1. d4 {[%emt 0:00:05]} d5 {[%emt 0:00:05]} 2. Bf4 {[%emt 0:00:00]} Nf6 {[%emt 0:00:15]} 3. e3 {[%emt 0:00:05]} e6 {[%emt 0:00:05]} 4. Nf3 {[%emt 0:00:11]} Bd6 {[%emt 0:00:13]} 5. Bg3 {[%emt 0:00:05]} Qe7 {[%emt 0:00:05]} 6. Nbd2 {[%emt 0:00:22]} Nbd7 {[%emt 0:00:25]} 7. Ne5 {[%emt 0:00:37]} c5 {[%emt 0:01:06]} 8. c3 {[%emt 0:00:36]} c4 {[%emt 0:00:16]} 9. Be2 {[%emt 0:01:54]} O-O {[%emt 0:00:05]} 10. O-O {[%emt 0:01:07]} Ne8 {[%emt 0:01:19]} 11. b3 {[%emt 0:00:21]} Bxe5 {[%emt 0:01:38]} 12. dxe5 {[%emt 0:00:04]} b5 {[%emt 0:00:17]} 13. Qc2 {[%emt 0:01:52]} Bb7 {[%emt 0:00:32]} 14. a4 {[%emt 0:00:16]} a6 {[%emt 0:00:56]} 15. axb5 {[%emt 0:00:18]} axb5 {[%emt 0:00:00]} 16. Rxa8 {[%emt 0:00:17]} Bxa8 {[%emt 0:00:05]} 17. Ra1 {[%emt 0:00:08]} Nc7 {[%emt 0:01:40]} 18. Nf3 {[%emt 0:00:48]} Nc5 {[%emt 0:00:43]} 19. b4 {[%emt 0:00:31]} Na4 {[%emt 0:00:33]} 20. Bh4 {[%emt 0:00:21]} Qd7 {[%emt 0:00:57]} 21. Nd4 {[%emt 0:00:32]} Bb7 {[%emt 0:00:13]} 22. f4 {[%emt 0:00:24]} Ne8 {[%emt 0:00:14]} 23. Bg4 {[%emt 0:00:21]} g6 {[%emt 0:00:05]} 24. Bg5 {[%emt 0:00:05]} Ng7 {[%emt 0:00:04]} 25. h4 {[%emt 0:00:05]} Ra8 {[%emt 0:00:05]} 26. Rc1 {[%emt 0:00:17]} Nb6 {[%emt 0:00:07]} 27. Qe2 {[%emt 0:00:05]} Ra3 {[%emt 0:00:05]} 28. h5 {[%emt 0:00:05]} Na4 {[%emt 0:00:00]} 29. hxg6 {[%emt 0:00:11]} hxg6 {[%emt 0:00:01]} 30. Qe1 {[%emt 0:00:02]} Ra2 {[%emt 0:00:11]} 31. Bf6 {[%emt 0:00:05]} Nb2 {[%emt 0:00:03]} 32. Qh4 {[%emt 0:00:04]} Nd3 {[%emt 0:00:09]} 33. Qh6 {[%emt 0:00:17]} 1-0

[Event "Red Bull Chess Masters 2018"]
[Site "Istanbul"]
[Date "2018.10.20"]
[Round "1.2"]
[White "Incecik, Seyma Zeynep"]
[Black "Eraslan, Ecem"]
[Result "1/2-1/2"]
[ECO "A06"]
[WhiteElo "1796"]
[BlackElo "1290"]
[Annotator "NA RC"]
[PlyCount "85"]
[EventDate "2018.10.19"]
[EventType "team-tourn"]
[EventCountry "TUR"]
[SourceTitle "playchess.com"]
[Source "ChessBase"]
[SourceQuality "1"]
[TimeControl "600+5"]

1. b3 {[%emt 0:00:05]} d5 {[%emt 0:00:05]} 2. Bb2 {[%emt 0:00:05]} c5 {[%emt 0:00:05]} 3. e3 {[%emt 0:00:05]} Nf6 {[%emt 0:00:05]} 4. Nf3 {[%emt 0:00:00]} Bf5 {[%emt 0:00:07]} 5. Bb5+ {[%emt 0:00:07]} Bd7 {[%emt 0:01:12]} 6. Be2 {[%emt 0:00:05]} Nc6 {[%emt 0:00:05]} 7. O-O {[%emt 0:00:01]} e6 {[%emt 0:00:40]} 8. d4 {[%emt 0:00:05]} cxd4 {[%emt 0:00:05]} 9. Nxd4 {[%emt 0:00:05]} Be7 {[%emt 0:00:05]} 10. c4 {[%emt 0:00:12]} dxc4 {[%emt 0:01:47]} 11. Bxc4 {[%emt 0:00:06]} Nxd4 {[%emt 0:00:36]} 12. Qxd4 {[%emt 0:00:28]} Bc6 {[%emt 0:00:09]} 13. Qh4 {[%emt 0:00:52]} O-O {[%emt 0:00:26]} 14. Nc3 {[%emt 0:00:29]} Ne4 {[%emt 0:00:50]} 15. Qg4 {[%emt 0:00:11]} Nxc3 {[%emt 0:00:05]} 16. Bxc3 {[%emt 0:00:05]} Bf6 {[%emt 0:00:23]} 17. Rfd1 {[%emt 0:00:40]} Qe7 {[%emt 0:00:34]} 18. Bxf6 {[%emt 0:00:19]} Qxf6 {[%emt 0:00:02]} 19. Rac1 {[%emt 0:00:33]} Rfd8 {[%emt 0:00:07]} 20. h3 {[%emt 0:00:39]} Rxd1+ {[%emt 0:00:05]} 21. Rxd1 {[%emt 0:00:00]} Rd8 {[%emt 0:00:18]} 22. Bd3 {[%emt 0:01:11]} h6 {[%emt 0:00:54]} 23. Qe2 {[%emt 0:01:13]} a6 {[%emt 0:00:36]} 24. Rc1 {[%emt 0:00:19]} Qg5 {[%emt 0:01:12]} 25. f3 {[%emt 0:00:17]} Rd6 {[%emt 0:00:27]} 26. Rd1 {[%emt 0:00:17]} Qe7 {[%emt 0:00:09]} 27. Qd2 {[%emt 0:00:20]} Kf8 {[%emt 0:00:05]} 28. Qb4 {[%emt 0:00:05]} Ke8 {[%emt 0:00:21]} 29. e4 {[%emt 0:00:30]} Qd7 {[%emt 0:00:13]} 30. Qc3 {[%emt 0:00:55]} Bb5 {[%emt 0:00:15]} 31. Qxg7 {[%emt 0:00:12]} Rxd3 {[%emt 0:00:07]} 32. Qh8+ {[%emt 0:00:19]} Ke7 {[%emt 0:00:05]} 33. Rxd3 {[%emt 0:00:08]} Qxd3 {[%emt 0:00:05]} 34. Qxh6 {[%emt 0:00:05]} Qd4+ {[%emt 0:00:05]} 35. Kh1 {[%emt 0:00:17]} Qa1+ {[%emt 0:00:15]} 36. Kh2 {[%emt 0:00:05]} Qe5+ {[%emt 0:00:05]} 37. Kh1 {[%emt 0:00:00]} Qg3 {[%emt 0:00:05]} 38. Qc1 {[%emt 0:00:14]} Qd6 {[%emt 0:00:11]} 39. Qg5+ {[%emt 0:00:05]} Kf8 {[%emt 0:00:05]} 40. Qh6+ {[%emt 0:00:05]} Ke8 {[%emt 0:00:00]} 41. Qh8+ {[%emt 0:00:04]} Ke7 {[%emt 0:00:01]} 42. Qh4+ {[%emt 0:00:05]} Ke8 {[%emt 0:00:05]} 43. Qh8+ {[%emt 0:00:00]} 1/2-1/2

[Event "Red Bull Chess Masters 2018"]
[Site "Istanbul"]
[Date "2018.10.20"]
[Round "1.2"]
[White "Yarar, Muammer Atakan"]
[Black "Yeke, Serkan"]
[Result "0-1"]
[ECO "A81"]
[WhiteElo "1784"]
[BlackElo "2117"]
[Annotator "NA RC"]
[PlyCount "122"]
[EventDate "2018.10.19"]
[EventType "team-tourn"]
[EventCountry "TUR"]
[SourceTitle "playchess.com"]
[Source "ChessBase"]
[SourceQuality "1"]
[TimeControl "600+5"]

1. d4 {[%emt 0:00:05]} f5 {[%emt 0:00:05]} 2. Nf3 {[%emt 0:00:00]} Nf6 {[%emt 0:00:18]} 3. g3 {[%emt 0:00:03]} e6 {[%emt 0:00:05]} 4. Bg2 {[%emt 0:00:05]} d5 {[%emt 0:00:05]} 5. O-O {[%emt 0:00:05]} Bd6 {[%emt 0:00:05]} 6. e3 {[%emt 0:00:00]} O-O {[%emt 0:00:08]} 7. b3 {[%emt 0:00:02]} Qe7 {[%emt 0:00:05]} 8. c4 {[%emt 0:00:05]} c6 {[%emt 0:00:05]} 9. Bb2 {[%emt 0:00:05]} b6 {[%emt 0:00:05]} 10. Nc3 {[%emt 0:00:05]} Bb7 {[%emt 0:00:33]} 11. Nd2 {[%emt 0:00:00]} Nbd7 {[%emt 0:00:25]} 12. Rc1 {[%emt 0:00:04]} Ne4 {[%emt 0:00:05]} 13. f3 {[%emt 0:00:02]} Nxc3 {[%emt 0:00:00]} 14. Bxc3 {[%emt 0:00:05]} e5 $15 {[%emt 0:01:37]} 15. Re1 {[%emt 0:00:39]} e4 {[%emt 0:00:23]} 16. f4 {[%emt 0:00:26]} a5 {[%emt 0:00:25]} 17. Bf1 {[%emt 0:00:52]} Nf6 {[%emt 0:00:32]} 18. Be2 {[%emt 0:00:19]} Ba3 {[%emt 0:01:10]} 19. Rb1 {[%emt 0:00:05]} Rfc8 {[%emt 0:00:11]} 20. Qc2 {[%emt 0:00:33]} b5 {[%emt 0:00:05]} 21. c5 {[%emt 0:00:32]} Bb4 {[%emt 0:00:01]} 22. a4 {[%emt 0:01:46]} Bxc3 {[%emt 0:00:13]} 23. Qxc3 {[%emt 0:00:05]} b4 {[%emt 0:00:05]} 24. Qc2 {[%emt 0:00:05]} Kh8 {[%emt 0:00:05]} 25. Kh1 {[%emt 0:00:05]} Rg8 {[%emt 0:00:00]} 26. Rf1 {[%emt 0:00:17]} Bc8 {[%emt 0:00:00]} 27. Rg1 {[%emt 0:02:02]} g5 {[%emt 0:00:17]} 28. fxg5 {[%emt 0:00:11]} Rxg5 {[%emt 0:00:05]} 29. Rbf1 {[%emt 0:00:09]} Be6 {[%emt 0:00:00]} 30. Rf4 {[%emt 0:00:27]} Rag8 {[%emt 0:00:07]} 31. Qd1 {[%emt 0:00:12]} Qg7 {[%emt 0:00:27]} 32. Nf1 {[%emt 0:00:25]} Qh6 {[%emt 0:00:38]} 33. Qe1 {[%emt 0:00:32]} Nh5 {[%emt 0:01:58]} 34. Bxh5 {[%emt 0:01:34]} Qxh5 {[%emt 0:00:28]} 35. Qf2 {[%emt 0:00:14]} Qd1 {[%emt 0:01:13]} 36. Nd2 {[%emt 0:00:19]} Qc2 {[%emt 0:00:03]} 37. Rg2 {[%emt 0:00:24]} Qd3 {[%emt 0:00:05]} 38. Rh4 {[%emt 0:00:05]} Rg4 {[%emt 0:00:34]} 39. Rxg4 {[%emt 0:00:06]} Rxg4 {[%emt 0:00:05]} 40. h3 {[%emt 0:00:00]} Rg7 {[%emt 0:00:11]} 41. Qf4 {[%emt 0:00:02]} Qa6 {[%emt 0:00:11]} 42. Qe5 {[%emt 0:00:05]} Bd7 {[%emt 0:00:06]} 43. Kh2 {[%emt 0:00:09]} Kg8 {[%emt 0:00:01]} 44. Rf2 {[%emt 0:00:06]} Qc8 {[%emt 0:00:05]} 45. Nf1 {[%emt 0:00:05]} Qd8 {[%emt 0:00:02]} 46. Qd6 {[%emt 0:00:01]} Rg6 {[%emt 0:00:06]} 47. Qe5 {[%emt 0:00:08]} Rg7 {[%emt 0:00:05]} 48. Rf4 {[%emt 0:00:00]} h6 {[%emt 0:00:15]} 49. Qd6 {[%emt 0:00:03]} Qg5 {[%emt 0:00:05]} 50. Qb8+ {[%emt 0:00:09]} Kh7 {[%emt 0:00:01]} 51. Qe5 {[%emt 0:00:10]} Qh5 {[%emt 0:00:01]} 52. Kg2 {[%emt 0:00:01]} Qe2+ {[%emt 0:00:15]} 53. Rf2 {[%emt 0:00:01]} Qh5 {[%emt 0:00:05]} 54. Qf4 {[%emt 0:00:04]} Qd1 {[%emt 0:00:03]} 55. Nd2 {[%emt 0:00:02]} Qe1 {[%emt 0:00:05]} 56. Qc7 {[%emt 0:00:11]} Qxe3 {[%emt 0:00:05]} 57. Qxa5 {[%emt 0:00:06]} Qxg3+ {[%emt 0:00:08]} 58. Kf1 {[%emt 0:00:04]} Qd3+ {[%emt 0:00:01]} 59. Re2 {[%emt 0:00:12]} f4 {[%emt 0:00:01]} 60. Ke1 {[%emt 0:00:03]} e3 {[%emt 0:00:04]} 61. Nf1 {[%emt 0:00:02]} Qb1# {[%emt 0:00:10]} 0-1

[Event "Red Bull Chess Masters 2018"]
[Site "Istanbul"]
[Date "2018.10.20"]
[Round "1.2"]
[White "Sahin, Hayrun Nisa"]
[Black "Tofan, Zeynep"]
[Result "1-0"]
[ECO "C46"]
[WhiteElo "1708"]
[BlackElo "1058"]
[Annotator "NA RC"]
[PlyCount "61"]
[EventDate "2018.10.19"]
[EventType "team-tourn"]
[EventCountry "TUR"]
[SourceTitle "playchess.com"]
[Source "ChessBase"]
[SourceQuality "1"]
[TimeControl "600+5"]

1. e4 {[%emt 0:00:05]} e5 {[%emt 0:00:05]} 2. Nf3 {[%emt 0:00:05]} Nc6 {[%emt 0:00:05]} 3. Nc3 {[%emt 0:00:05]} Bb4 {[%emt 0:00:05]} 4. Bb5 {[%emt 0:00:00]} d6 {[%emt 0:00:34]} 5. O-O {[%emt 0:00:00]} Bd7 {[%emt 0:00:05]} 6. d3 {[%emt 0:00:05]} Nf6 {[%emt 0:00:05]} 7. Bg5 {[%emt 0:00:16]} Bxc3 {[%emt 0:00:19]} 8. bxc3 {[%emt 0:00:05]} h6 {[%emt 0:00:04]} 9. Bxf6 {[%emt 0:00:28]} Qxf6 {[%emt 0:00:09]} 10. Bxc6 {[%emt 0:00:04]} Bxc6 {[%emt 0:00:05]} 11. Re1 {[%emt 0:00:05]} O-O {[%emt 0:00:05]} 12. d4 {[%emt 0:00:05]} exd4 {[%emt 0:00:05]} 13. cxd4 {[%emt 0:00:05]} Rfe8 {[%emt 0:00:47]} 14. Qd3 {[%emt 0:02:29]} Rad8 {[%emt 0:01:34]} 15. Rab1 {[%emt 0:00:23]} b6 {[%emt 0:00:27]} 16. Re3 {[%emt 0:01:28]} a5 {[%emt 0:04:22]} 17. Rbe1 {[%emt 0:00:10]} Bb7 {[%emt 0:01:19]} 18. c3 {[%emt 0:03:17]} c5 {[%emt 0:00:26]} 19. d5 {[%emt 0:00:14]} Rd7 {[%emt 0:00:42]} 20. Qe2 {[%emt 0:00:47]} Qd8 {[%emt 0:00:09]} 21. c4 {[%emt 0:00:18]} Rde7 {[%emt 0:00:05]} 22. e5 {[%emt 0:00:05]} dxe5 {[%emt 0:00:01]} 23. Nxe5 {[%emt 0:00:01]} Qd6 {[%emt 0:00:08]} 24. Qb2 {[%emt 0:00:45]} f6 {[%emt 0:00:05]} 25. Ng4 {[%emt 0:00:05]} Rxe3 {[%emt 0:00:05]} 26. Rxe3 {[%emt 0:00:05]} Rxe3 {[%emt 0:00:05]} 27. Nxe3 {[%emt 0:00:05]} Bc8 {[%emt 0:00:05]} 28. Qb1 {[%emt 0:00:05]} Bd7 {[%emt 0:00:05]} 29. Qe4 {[%emt 0:00:03]} Qc7 {[%emt 0:00:06]} 30. Qe7 {[%emt 0:00:06]} Kh8 {[%emt 0:00:05]} 31. Nf5 {[%emt 0:00:12]} 1-0

[Event "Red Bull Chess Masters 2018"]
[Site "Istanbul"]
[Date "2018.10.20"]
[Round "2.1"]
[White "Atas, Yunus"]
[Black "Degirmenci, Yagiz"]
[Result "0-1"]
[ECO "D36"]
[WhiteElo "1921"]
[BlackElo "1881"]
[Annotator "NA RC"]
[PlyCount "106"]
[EventDate "2018.10.19"]
[EventType "team-tourn"]
[EventCountry "TUR"]
[SourceTitle "playchess.com"]
[Source "ChessBase"]
[SourceQuality "1"]
[TimeControl "600+5"]

1. d4 {[%emt 0:00:03]} d5 {[%emt 0:00:07]} 2. Nf3 {[%emt 0:00:05]} Nf6 {[%emt 0:00:05]} 3. c4 {[%emt 0:00:04]} e6 {[%emt 0:00:02]} 4. Nc3 {[%emt 0:00:05]} Be7 {[%emt 0:00:05]} 5. Bg5 {[%emt 0:00:10]} O-O {[%emt 0:00:02]} 6. e3 {[%emt 0:00:00]} Nbd7 {[%emt 0:00:37]} 7. Qc2 {[%emt 0:00:11]} c6 {[%emt 0:00:07]} 8. cxd5 {[%emt 0:00:04]} exd5 {[%emt 0:00:13]} 9. Bd3 {[%emt 0:00:06]} h6 {[%emt 0:00:05]} 10. Bh4 {[%emt 0:00:10]} Re8 {[%emt 0:00:05]} 11. O-O {[%emt 0:00:05]} Ne4 {[%emt 0:00:12]} 12. Nxe4 {[%emt 0:00:35]} dxe4 {[%emt 0:00:12] D36: Queen's Gambit Declined: Exchange Variation: Main line (5 Bg5 c6 6 Qc2)} 13. Bxe4 {[%emt 0:01:19]} Bxh4 {[%emt 0:00:05]} 14. Rac1 $146 {[%emt 0:00:05]} ({Predecessor:} 14. Ne5 Nxe5 15. dxe5 Rxe5 16. f4 Re8 17. g3 Bf6 18. Bh7+ Kh8 19. e4 Bd4+ 20. Kh1 Kxh7 21. e5+ Kg8 {0-1 (21) Ergenc,C (1657)-Fugger,C (1881) Hoersching 2017}) 14... Bf6 {[%emt 0:00:15]} 15. b4 {[%emt 0:01:08]} Qe7 {[%emt 0:00:05]} 16. Bd3 {[%emt 0:00:05]} Qxb4 {[%emt 0:00:05]} 17. Bc4 {[%emt 0:00:30]} Nb6 {[%emt 0:00:25]} 18. Bb3 {[%emt 0:00:03]} Be6 {[%emt 0:00:33]} 19. Bxe6 {[%emt 0:01:14]} Rxe6 {[%emt 0:00:05]} 20. Nd2 {[%emt 0:00:21]} Rd8 {[%emt 0:00:30]} 21. Rb1 {[%emt 0:00:20]} Qe7 {[%emt 0:00:42]} 22. a4 {[%emt 0:00:15]} Nd5 {[%emt 0:00:29]} 23. Nc4 {[%emt 0:00:14]} Rc8 {[%emt 0:00:28]} 24. Qb3 {[%emt 0:00:16]} b6 {[%emt 0:00:05]} 25. Rfc1 {[%emt 0:00:05]} Qd7 {[%emt 0:00:36]} 26. Nd2 {[%emt 0:00:32]} c5 {[%emt 0:00:53]} 27. e4 {[%emt 0:00:33]} Nf4 {[%emt 0:00:05]} 28. Qf3 {[%emt 0:00:01]} Ng6 {[%emt 0:01:34]} 29. d5 {[%emt 0:00:28]} Ree8 {[%emt 0:00:04]} 30. Qd3 {[%emt 0:00:22]} Bg5 {[%emt 0:00:04]} 31. Re1 {[%emt 0:01:01]} Ne5 {[%emt 0:00:10]} 32. Qc2 {[%emt 0:00:10]} Qg4 {[%emt 0:00:09]} 33. f3 {[%emt 0:00:10]} Qd7 {[%emt 0:00:24]} 34. a5 {[%emt 0:00:42]} Bxd2 {[%emt 0:00:13]} 35. Qxd2 {[%emt 0:00:02]} c4 {[%emt 0:00:06]} 36. axb6 {[%emt 0:00:05]} axb6 {[%emt 0:00:08]} 37. Qd4 {[%emt 0:00:28]} b5 {[%emt 0:00:14]} 38. f4 {[%emt 0:00:30]} Nd3 {[%emt 0:00:05]} 39. Re3 {[%emt 0:00:04]} Nxf4 {[%emt 0:00:10]} 40. Rf1 {[%emt 0:00:05]} Qg4 {[%emt 0:00:05]} 41. Rf2 {[%emt 0:00:23]} Ng6 {[%emt 0:01:08]} 42. d6 {[%emt 0:00:10]} Qd7 {[%emt 0:00:14]} 43. e5 {[%emt 0:00:07] [#]} c3 $1 {[%emt 0:00:19]} 44. Rxc3 {[%emt 0:00:08]} Rxc3 {[%emt 0:00:11]} 45. Qxc3 {[%emt 0:00:05]} Nxe5 {[%emt 0:00:05]} 46. Qd4 {[%emt 0:00:02]} Nc4 {[%emt 0:00:12]} 47. Rf5 {[%emt 0:00:08]} Qxd6 $19 {[%emt 0:00:11]} (47... Qxf5 $142 48. Qa1 Qc5+ 49. Kh1 Qf2 50. h4 Re1+ 51. Qxe1 Qxe1+ 52. Kh2 Nxd6 53. Kh3 Ne4 54. Kh2 h5 55. g4 Qg3+ 56. Kh1 Nf2#) 48. Rd5 {[%emt 0:00:04]} Qe6 {[%emt 0:00:09]} 49. h3 {[%emt 0:00:03]} Qe1+ {[%emt 0:00:20]} 50. Kh2 {[%emt 0:00:02]} Ne3 {[%emt 0:00:03]} 51. Rd8 {[%emt 0:00:10]} Nf1+ {[%emt 0:00:04]} 52. Kg1 {[%emt 0:00:12]} Ne3+ {[%emt 0:00:10]} 53. Kh2 {[%emt 0:00:05]} Nf5 {[%emt 0:00:05]} 0-1

[Event "Red Bull Chess Masters 2018"]
[Site "Istanbul"]
[Date "2018.10.20"]
[Round "2.1"]
[White "Celikel, Fatih"]
[Black "Aliakbarov, Anar"]
[Result "0-1"]
[ECO "D00"]
[WhiteElo "1856"]
[BlackElo "2281"]
[Annotator "RC"]
[PlyCount "72"]
[EventDate "2018.10.19"]
[EventType "team-tourn"]
[EventCountry "TUR"]
[SourceTitle "playchess.com"]
[Source "ChessBase"]
[SourceQuality "1"]
[TimeControl "600+5"]

1. d4 {[%emt 0:00:05]} d5 {[%emt 0:00:02]} 2. Bf4 {[%emt 0:00:07]} Nf6 {[%emt 0:00:05]} 3. e3 {[%emt 0:00:05]} c5 {[%emt 0:00:00]} 4. c3 {[%emt 0:00:18]} Nc6 {[%emt 0:00:07]} 5. Nd2 {[%emt 0:00:20]} cxd4 {[%emt 0:00:05]} 6. exd4 {[%emt 0:00:05]} Bf5 {[%emt 0:00:00]} 7. Qb3 {[%emt 0:00:50]} Qc8 {[%emt 0:00:00]} 8. Ngf3 {[%emt 0:00:56]} e6 {[%emt 0:00:00]} 9. Bb5 {[%emt 0:00:31]} Be7 {[%emt 0:00:45]} 10. O-O {[%emt 0:00:30]} O-O {[%emt 0:00:07]} 11. Rfe1 {[%emt 0:00:55]} a6 {[%emt 0:01:40]} 12. Bxc6 {[%emt 0:01:34]} bxc6 {[%emt 0:00:01]} 13. Qa4 {[%emt 0:00:33]} c5 {[%emt 0:00:25]} 14. Nb3 {[%emt 0:00:32]} Ne4 {[%emt 0:01:05]} 15. Na5 {[%emt 0:00:33]} Qe8 {[%emt 0:01:51]} 16. Qc6 {[%emt 0:01:02]} cxd4 {[%emt 0:00:44]} 17. Nxd4 {[%emt 0:00:22]} Bg6 {[%emt 0:00:31]} 18. f3 {[%emt 0:00:37]} Nc5 {[%emt 0:00:26]} 19. Re2 {[%emt 0:00:47]} Rc8 {[%emt 0:01:03]} 20. Qxe8 {[%emt 0:00:09]} Rfxe8 {[%emt 0:00:09]} 21. Nac6 {[%emt 0:00:12]} Bf6 {[%emt 0:00:14]} 22. Ne5 {[%emt 0:00:16]} Nd3 {[%emt 0:00:18]} 23. Nxd3 {[%emt 0:00:01]} Bxd3 {[%emt 0:00:02]} 24. Re3 {[%emt 0:00:11]} Bg6 {[%emt 0:00:25]} 25. Be5 {[%emt 0:00:07]} Bd8 {[%emt 0:00:05]} 26. Rae1 {[%emt 0:00:01]} f6 {[%emt 0:00:11]} 27. Bd6 {[%emt 0:00:05]} e5 {[%emt 0:00:05]} 28. Nb3 {[%emt 0:00:05]} Bb6 {[%emt 0:00:00]} 29. Kf1 {[%emt 0:00:13]} Bxe3 {[%emt 0:00:00]} 30. Rxe3 {[%emt 0:00:00]} Red8 {[%emt 0:00:12]} 31. Bc5 {[%emt 0:00:05]} Bc2 {[%emt 0:00:10]} 32. Be7 {[%emt 0:00:08]} Rd7 {[%emt 0:00:05]} 33. Bb4 {[%emt 0:00:11]} Bxb3 {[%emt 0:00:00]} 34. axb3 {[%emt 0:00:05]} d4 {[%emt 0:00:05]} 35. Rd3 {[%emt 0:00:05]} dxc3 {[%emt 0:00:15]} 36. Rxd7 {[%emt 0:00:05]} cxb2 {[%emt 0:00:12]} 0-1

[Event "Red Bull Chess Masters 2018"]
[Site "Istanbul"]
[Date "2018.10.20"]
[Round "2.1"]
[White "Sural, Ceren"]
[Black "Sahin, Hayrun Nisa"]
[Result "1/2-1/2"]
[ECO "B70"]
[WhiteElo "1662"]
[BlackElo "1708"]
[Annotator "NA RC"]
[PlyCount "132"]
[EventDate "2018.10.19"]
[EventType "team-tourn"]
[EventCountry "TUR"]
[SourceTitle "playchess.com"]
[Source "ChessBase"]
[SourceQuality "1"]
[TimeControl "600+5"]

1. e4 {[%emt 0:00:05]} c5 {[%emt 0:00:05]} 2. Nf3 {[%emt 0:00:05]} d6 {[%emt 0:00:05]} 3. d4 {[%emt 0:00:00]} cxd4 {[%emt 0:00:00]} 4. Nxd4 {[%emt 0:00:00]} Nf6 {[%emt 0:00:00]} 5. Nc3 {[%emt 0:00:04]} g6 {[%emt 0:00:03]} 6. Bc4 {[%emt 0:00:05]} Bg7 {[%emt 0:00:01]} 7. f3 {[%emt 0:01:32]} a6 {[%emt 0:00:01]} 8. Bb3 {[%emt 0:00:55]} b5 {[%emt 0:00:09]} 9. Nd5 {[%emt 0:00:30]} Bb7 {[%emt 0:00:16]} 10. Nxf6+ {[%emt 0:00:42]} Bxf6 {[%emt 0:00:05]} 11. c3 {[%emt 0:00:05]} Nc6 {[%emt 0:00:08]} 12. Bh6 {[%emt 0:00:55]} Nxd4 {[%emt 0:00:33]} 13. cxd4 {[%emt 0:00:05]} Qb6 {[%emt 0:00:05]} 14. Be3 {[%emt 0:00:05]} e5 {[%emt 0:00:14]} 15. Bf2 {[%emt 0:01:38]} exd4 {[%emt 0:00:51]} 16. O-O {[%emt 0:00:21]} O-O {[%emt 0:00:05]} 17. Qd3 {[%emt 0:00:00]} Rad8 {[%emt 0:00:14]} 18. Rad1 {[%emt 0:00:05]} d5 {[%emt 0:00:06]} 19. exd5 {[%emt 0:00:27]} Bxd5 {[%emt 0:00:03]} 20. Rd2 {[%emt 0:00:39]} Bxb3 {[%emt 0:00:25]} 21. Qxb3 {[%emt 0:00:05]} Rd7 {[%emt 0:00:07]} 22. Rfd1 {[%emt 0:00:05]} Rfd8 {[%emt 0:00:09]} 23. a4 {[%emt 0:00:36]} Rd5 {[%emt 0:01:17]} 24. Rd3 {[%emt 0:00:13]} Qc5 {[%emt 0:00:53]} 25. axb5 {[%emt 0:00:27]} Qxb5 {[%emt 0:00:36]} 26. Qa2 {[%emt 0:00:20]} R5d6 {[%emt 0:01:22]} 27. Bg3 {[%emt 0:00:12]} Rd5 {[%emt 0:00:13]} 28. R1d2 {[%emt 0:00:13]} Rc8 {[%emt 0:01:25]} 29. Qa1 {[%emt 0:00:50]} Rdc5 {[%emt 0:00:41]} 30. Rd1 {[%emt 0:00:04]} Rc2 {[%emt 0:00:29]} 31. b3 {[%emt 0:00:19]} R8c3 {[%emt 0:00:54]} 32. Qb1 {[%emt 0:00:04]} Qc5 {[%emt 0:00:14]} 33. Rxc3 {[%emt 0:00:26]} Qxc3 {[%emt 0:00:04]} 34. b4 {[%emt 0:00:22]} Qb2 {[%emt 0:00:02]} 35. Qxb2 {[%emt 0:00:03]} Rxb2 {[%emt 0:00:05]} 36. Be1 {[%emt 0:00:00]} Rb3 {[%emt 0:00:08]} 37. Kf2 {[%emt 0:00:07]} Kf8 {[%emt 0:00:24]} 38. Ke2 {[%emt 0:00:06]} Ke7 {[%emt 0:00:14]} 39. Rd3 {[%emt 0:00:12]} Rxd3 {[%emt 0:00:05]} 40. Kxd3 {[%emt 0:00:05]} Kd6 {[%emt 0:00:05]} 41. f4 {[%emt 0:00:05]} Kd5 {[%emt 0:00:05]} 42. g3 {[%emt 0:00:05]} Be7 {[%emt 0:00:05]} 43. Bd2 {[%emt 0:00:05]} Bf6 {[%emt 0:00:05]} 44. h4 {[%emt 0:00:05]} Bg7 {[%emt 0:00:05]} 45. Be1 {[%emt 0:00:05]} h6 {[%emt 0:00:00]} 46. Bd2 {[%emt 0:00:00]} f6 {[%emt 0:00:00]} 47. Bc1 {[%emt 0:00:00]} g5 {[%emt 0:00:04]} 48. hxg5 {[%emt 0:00:00]} hxg5 {[%emt 0:00:05]} 49. fxg5 {[%emt 0:00:00]} fxg5 {[%emt 0:00:05]} 50. Bxg5 {[%emt 0:00:05]} Bf8 {[%emt 0:00:05]} 51. Bd2 {[%emt 0:00:05]} Bd6 {[%emt 0:00:05]} 52. g4 {[%emt 0:00:05]} Bf8 {[%emt 0:00:05]} 53. g5 {[%emt 0:00:05]} Bg7 {[%emt 0:00:05]} 54. Be1 {[%emt 0:00:00]} Bh8 {[%emt 0:00:00]} 55. Bd2 {[%emt 0:00:00]} Bg7 {[%emt 0:00:00]} 56. Bc1 {[%emt 0:00:00]} Bh8 {[%emt 0:00:00]} 57. Bd2 {[%emt 0:00:00]} Bg7 {[%emt 0:00:00]} 58. Bf4 {[%emt 0:00:00]} Bf8 {[%emt 0:00:00]} 59. Bd2 {[%emt 0:00:04]} Bg7 {[%emt 0:00:00]} 60. Be1 {[%emt 0:00:03]} Bf8 {[%emt 0:00:00]} 61. g6 {[%emt 0:00:05]} Bg7 {[%emt 0:00:00]} 62. Bh4 {[%emt 0:00:16]} Ke5 {[%emt 0:00:00]} 63. Bf2 {[%emt 0:00:06]} Kd5 {[%emt 0:00:00]} 64. Bh4 {[%emt 0:00:11]} Ke5 {[%emt 0:00:00]} 65. Be7 {[%emt 0:00:04]} Kd5 {[%emt 0:00:00]} 66. Bc5 {[%emt 0:00:02]} a5 {[%emt 0:00:02]} 1/2-1/2